bitfinex-derivatives/quotes_BTCF0:USTF0_20241128
["timestamp","ask_amount","ask_price","bid_price","bid_amount"]
[1732796373441,0.413132,95511.0,95509.0,0.01369426]
[1732796373635,0.052332,95510.0,95508.0,0.05245236]
[1732796373835,0.052332,95510.0,95509.0,0.02351197]
[1732796375340,0.052332,95510.0,95509.0,0.02451197]
[1732796375539,0.052332,95510.0,95509.0,0.01142169]
[1732796376442,0.3608,95511.0,95509.0,0.01142169]
[1732796376641,0.3608,95511.0,95510.0,0.06275369]
[1732796377041,0.3608,95511.0,95510.0,0.07958151]
[1732796377236,0.3608,95511.0,95510.0,0.09267157]
[1732796377641,0.413131,95511.0,95510.0,0.09267157]
[1732796377846,0.413131,95511.0,95510.0,0.10576137]
[1732796378243,0.413131,95511.0,95510.0,0.10676137]
[1732796379345,0.413131,95511.0,95510.0,0.10672747]
[1732796379939,0.413131,95511.0,95510.0,0.08998015]
[1732796380135,0.413131,95511.0,95510.0,0.10673005]
[1732796380340,0.413131,95511.0,95510.0,0.07951186]
[1732796380341,0.3608,95511.0,95510.0,0.07951186]
[1732796380543,0.3608,95511.0,95510.0,0.10675454]
[1732796380745,0.12506821,95512.0,95511.0,0.052331]
[1732796381047,0.15664,95523.0,95518.0,0.052327]
[1732796381235,0.12506821,95529.0,95519.0,0.07116293]
[1732796381434,0.15664,95528.0,95520.0,0.06068522]
[1732796381649,0.12506821,95529.0,95528.0,0.052322]
[1732796381850,0.28170821,95529.0,95528.0,0.06279971]
[1732796383153,0.28970821,95529.0,95528.0,0.06279971]
[1732796383360,0.16464,95529.0,95528.0,0.06279971]
[1732796384348,0.16464,95529.0,95528.0,0.01047771]
[1732796384349,0.216961,95529.0,95528.0,0.01047771]
[1732796384655,0.208961,95529.0,95528.0,0.01147771]
[1732796384842,0.208961,95529.0,95528.0,0.001]
[1732796385148,0.569761,95529.0,95528.0,0.001]
[1732796385739,0.51744,95529.0,95523.0,0.052324]
[1732796385949,0.052324,95524.0,95523.0,0.052324]
[1732796386251,0.052324,95524.0,95523.0,0.01038743]
[1732796386950,0.052322,95528.0,95517.0,0.052328]
[1732796386951,0.052327,95518.0,95517.0,0.052328]
[1732796387253,0.208967,95518.0,95517.0,0.06276011]
[1732796388251,0.208967,95518.0,95517.0,0.06376011]
[1732796389148,0.208967,95518.0,95517.0,0.08070543]
[1732796389452,0.208967,95518.0,95517.0,0.06376011]
[1732796389652,0.208967,95518.0,95517.0,0.053328]
[1732796389848,0.208967,95518.0,95517.0,0.001]
[1732796390447,0.208967,95518.0,95517.0,0.02855289]
[1732796390755,0.208967,95518.0,95517.0,0.001]
[1732796391147,0.208967,95518.0,95517.0,0.02763971]
[1732796391345,0.208967,95518.0,95517.0,0.02863971]
[1732796396053,0.208967,95518.0,95517.0,0.08096771]
[1732796400064,0.208967,95518.0,95517.0,0.02863971]
[1732796400655,0.208967,95518.0,95517.0,0.02848139]
[1732796401266,0.208967,95518.0,95517.0,0.08080939]
[1732796401864,0.208967,95518.0,95517.0,0.06389752]
[1732796403664,0.208967,95518.0,95517.0,0.08069557]
[1732796403864,0.3608,95519.0,95518.0,0.052327]
[1732796404162,0.3608,95519.0,95518.0,0.07969457]
[1732796404464,0.3608,95519.0,95518.0,0.11049457]
[1732796404662,0.3608,95519.0,95518.0,0.13148667]
[1732796404967,0.3608,95519.0,95518.0,0.15766489]
[1732796405365,0.413127,95519.0,95518.0,0.04045666]
[1732796405664,0.413127,95519.0,95518.0,0.02836757]
[1732796405856,0.727207,95519.0,95508.0,0.00011936]
[1732796406057,0.727207,95519.0,95499.0,0.0107668]
[1732796406058,0.052337,95500.0,95499.0,0.0107668]
[1732796406253,0.208657,95500.0,95499.0,0.04167376]
[1732796406466,0.052338,95499.0,95498.0,0.05390846]
[1732796406669,0.15632,95500.0,95499.0,0.052338]
[1732796406964,0.15678647,95521.0,95515.0,0.052329]
[1732796407164,0.15632,95525.0,95524.0,0.052324]
[1732796407570,0.052324,95525.0,95524.0,0.07850173]
[1732796407861,0.51712,95529.0,95516.0,0.3144253]
[1732796408064,0.51712,95529.0,95517.0,0.01308814]
[1732796408065,0.052328,95518.0,95517.0,0.01308814]
[1732796408251,0.052328,95518.0,95517.0,0.0229043]
[1732796409462,0.052328,95518.0,95517.0,0.00327203]
[1732796409769,0.052328,95517.0,95516.0,0.04795057]
[1732796410155,0.052328,95517.0,95512.0,0.052331]
[1732796410156,0.05233,95513.0,95512.0,0.052331]
[1732796410459,0.3608,95513.0,95505.0,0.115734]
[1732796410660,0.052334,95506.0,95505.0,0.115734]
[1732796411265,0.052334,95506.0,95505.0,0.13209747]
[1732796411574,0.052334,95506.0,95499.0,0.0524404]
[1732796411867,0.052334,95506.0,95499.0,0.0001034]
[1732796411868,0.052337,95500.0,95499.0,0.0001034]
[1732796412061,0.208657,95500.0,95499.0,0.01843172]
[1732796412257,0.208657,95500.0,95499.0,0.03152337]
[1732796412662,0.208657,95500.0,95499.0,0.0001034]
[1732796413169,0.209657,95500.0,95499.0,0.0001034]
[1732796414460,0.210657,95500.0,95499.0,0.0001034]
[1732796418168,0.210657,95500.0,95499.0,0.01017287]
[1732796418365,0.210657,95500.0,95499.0,0.06251087]
[1732796418672,0.210657,95500.0,95499.0,0.01017287]
[1732796419861,0.210657,95500.0,95499.0,0.01017448]
[1732796420765,0.210657,95500.0,95499.0,0.0001034]
[1732796426174,0.210657,95500.0,95499.0,0.01018164]
[1732796426373,0.210657,95500.0,95499.0,0.0101812]
[1732796426963,0.210657,95500.0,95499.0,0.0001034]
[1732796428876,0.210657,95500.0,95499.0,0.0101928]
[1732796429578,0.210657,95500.0,95499.0,0.0001034]
[1732796432368,0.210657,95500.0,95499.0,0.01024918]
[1732796432572,0.052348,95482.0,95481.0,0.052348]
[1732796432773,0.54593956,95482.0,95481.0,0.018331]
[1732796433070,0.052353,95476.0,95475.0,0.052351]
[1732796433270,0.052353,95476.0,95475.0,0.06871973]
[1732796433471,0.052353,95476.0,95475.0,0.07854097]
[1732796434090,0.208353,95476.0,95475.0,0.07854097]
[1732796434478,0.208353,95476.0,95475.0,0.02618997]
[1732796434674,0.209353,95476.0,95475.0,0.02291623]
[1732796434878,0.210353,95476.0,95475.0,0.02291623]
[1732796435278,0.210353,95476.0,95475.0,0.02291625]
[1732796435783,0.210353,95476.0,95475.0,0.01309499]
[1732796439479,0.210353,95476.0,95475.0,0.02911305]
[1732796440181,0.210353,95476.0,95475.0,0.02910212]
[1732796440987,0.210353,95476.0,95475.0,0.0389234]
[1732796441886,0.210353,95476.0,95475.0,0.0912744]
[1732796442988,0.054353,95476.0,95475.0,0.0912744]
[1732796443185,0.210393,95476.0,95475.0,0.0912744]
[1732796443374,0.210393,95476.0,95475.0,0.09471165]
[1732796444485,0.210393,95476.0,95475.0,0.1015455]
[1732796444888,0.210393,95476.0,95475.0,0.08537488]
[1732796445488,0.054353,95476.0,95475.0,0.08537488]
[1732796445777,0.210393,95476.0,95475.0,0.08537488]
[1732796446482,0.210393,95476.0,95475.0,0.08864864]
[1732796446884,0.210393,95476.0,95475.0,0.08867157]
[1732796447411,0.210393,95476.0,95475.0,0.06248154]
[1732796448006,0.210393,95476.0,95475.0,0.07874381]
[1732796450196,0.210393,95476.0,95475.0,0.02639281]
[1732796450687,0.210393,95476.0,95475.0,0.01013054]
[1732796450688,0.2104964,95476.0,95475.0,0.01013054]
[1732796450885,0.2104964,95476.0,95470.0,9.571e-05]
[1732796450886,0.052353,95471.0,95470.0,9.571e-05]
[1732796451095,0.413153,95471.0,95470.0,9.571e-05]
[1732796451791,0.413153,95471.0,95470.0,0.05244971]
[1732796451988,0.413153,95471.0,95470.0,0.0687745]
[1732796452695,0.414153,95471.0,95470.0,0.0687745]
[1732796453894,0.415153,95471.0,95470.0,0.0687745]
[1732796454785,0.3628,95471.0,95470.0,0.0687745]
[1732796454986,0.3628,95471.0,95470.0,0.0916918]
[1732796454987,0.002,95471.0,95470.0,0.0916918]
[1732796455187,0.002,95471.0,95470.0,0.11223441]
[1732796456795,0.0001034,95476.0,95470.0,0.11223441]
[1732796456796,0.0001034,95476.0,95475.0,0.052351]
[1732796457004,0.048035,95523.0,95486.0,0.052345]
[1732796457005,0.01512399,95487.0,95486.0,0.052345]
[1732796457687,0.3608,95499.0,95498.0,0.052338]
[1732796457996,0.36087506,95499.0,95498.0,0.06888978]
[1732796458589,0.41321306,95499.0,95498.0,0.06888978]
[1732796458790,0.41321306,95499.0,95498.0,0.01659136]
[1732796458992,0.36087506,95499.0,95493.0,0.052341]
[1732796459191,0.05234,95495.0,95494.0,0.01663101]
[1732796459389,0.05234,95495.0,95494.0,0.06897101]
[1732796459996,0.05234,95495.0,95494.0,0.05234]
[1732796460391,0.36087506,95499.0,95491.0,0.04696335]
[1732796460392,0.36087506,95499.0,95498.0,0.052338]
[1732796460596,0.41321306,95499.0,95498.0,0.052338]
[1732796462001,0.41321306,95499.0,95498.0,0.053338]
[1732796463000,0.41321306,95499.0,95498.0,0.06474514]
[1732796465395,0.36087506,95499.0,95498.0,0.06474514]
[1732796465595,0.36087506,95499.0,95498.0,0.10750409]
[1732796466800,0.36087506,95499.0,95498.0,0.10423114]
[1732796467395,0.36087506,95499.0,95498.0,0.09113952]
[1732796467591,0.36087506,95499.0,95498.0,0.10423082]
[1732796467803,0.05390536,95506.0,95498.0,0.05516564]
[1732796467996,0.05390536,95506.0,95504.0,0.052335]
[1732796468191,0.05390536,95506.0,95505.0,0.01040714]
[1732796468699,0.05390536,95506.0,95505.0,0.06274114]
[1732796468899,0.05398036,95506.0,95505.0,0.06264292]
[1732796469502,0.05598036,95506.0,95505.0,0.06264292]
[1732796470603,0.05698036,95506.0,95505.0,0.01030892]
[1732796470798,0.052343,95489.0,95487.0,0.052344]
[1732796471000,0.052343,95489.0,95488.0,0.10201193]
[1732796471696,0.052343,95492.0,95491.0,0.052342]
[1732796471901,0.052343,95492.0,95491.0,0.03320169]
[1732796472298,0.052343,95492.0,95491.0,0.01029101]
[1732796472499,0.083343,95492.0,95491.0,0.01029101]
[1732796472701,0.083343,95492.0,95488.0,0.001]
[1732796472702,0.052343,95489.0,95488.0,0.001]
[1732796472895,0.052343,95489.0,95488.0,0.01115924]
[1732796473205,0.413143,95489.0,95488.0,0.001]
[1732796473511,0.413143,95489.0,95488.0,0.01127]
[1732796474001,0.413143,95489.0,95488.0,0.001]
[1732796474301,0.413143,95489.0,95488.0,0.01232092]
[1732796474500,0.413143,95489.0,95488.0,0.002]
[1732796475003,0.413143,95489.0,95488.0,0.001]
[1732796475602,0.414143,95489.0,95488.0,0.002]
[1732796478814,0.3618,95489.0,95488.0,0.054344]
[1732796479001,0.3618,95489.0,95488.0,0.06468254]
[1732796479908,0.3618,95489.0,95488.0,0.054344]
[1732796480100,0.3618,95489.0,95488.0,0.06472775]
[1732796481205,0.001,95489.0,95488.0,0.06472775]
[1732796481412,0.001,95489.0,95488.0,0.09124583]
[1732796481612,0.001,95489.0,95488.0,0.09124579]
[1732796481909,0.001,95489.0,95488.0,0.10433872]
[1732796482102,0.001,95489.0,95488.0,0.1192418]
[1732796482304,0.001,95489.0,95488.0,0.10614887]
[1732796482498,0.001,95489.0,95488.0,0.09632909]
[1732796483216,0.001,95489.0,95488.0,0.11924187]
[1732796483402,0.001,95489.0,95488.0,0.14010042]
[1732796483606,0.001,95489.0,95488.0,0.11924187]
[1732796484309,7.5e-05,95506.0,95488.0,0.11924187]
[1732796484310,7.5e-05,95506.0,95505.0,0.052334]
[1732796484606,7.5e-05,95506.0,95505.0,0.07941601]
[1732796485010,7.5e-05,95506.0,95505.0,0.11342468]
[1732796485310,7.5e-05,95506.0,95505.0,0.12310033]
[1732796485705,0.001075,95506.0,95505.0,0.28846145]
[1732796485899,0.003075,95506.0,95505.0,0.10232401]
[1732796486310,0.002075,95506.0,95505.0,0.12318235]
[1732796486517,7.5e-05,95506.0,95505.0,0.12518235]
[1732796486715,7.5e-05,95506.0,95505.0,0.12518203]
[1732796486915,7.5e-05,95506.0,95505.0,0.29037371]
[1732796487118,7.5e-05,95506.0,95505.0,0.10432401]
[1732796487408,7.5e-05,95506.0,95505.0,0.12522286]
[1732796487615,7.5e-05,95506.0,95505.0,0.10432401]
[1732796488112,7.5e-05,95506.0,95505.0,0.10332401]
[1732796488313,7.5e-05,95506.0,95505.0,0.10532401]
[1732796488509,7.5e-05,95506.0,95505.0,0.10532407]
[1732796488709,7.5e-05,95506.0,95505.0,0.31224771]
[1732796488902,0.1556,95514.0,95513.0,0.05233]
[1732796489105,0.1556,95514.0,95513.0,0.07941201]
[1732796490023,0.15571577,95514.0,95513.0,0.07941201]
[1732796490217,0.00011577,95514.0,95513.0,0.07941201]
[1732796490418,0.00011577,95514.0,95513.0,0.44021201]
[1732796490616,0.00011577,95514.0,95513.0,0.46639157]
[1732796490814,0.00011577,95514.0,95513.0,0.64261761]
[1732796491112,0.413119,95534.0,95533.0,0.052319]
[1732796491311,0.568719,95534.0,95533.0,0.06270275]
[1732796491503,0.568719,95534.0,95533.0,0.01038375]
[1732796491711,0.568719,95534.0,95520.0,0.12608264]
[1732796491712,0.5164,95534.0,95521.0,0.0332]
[1732796491908,0.05232,95533.0,95532.0,0.05232]
[1732796492111,0.05245161,95533.0,95532.0,0.06278155]
[1732796492407,0.00013161,95533.0,95532.0,0.05232]
[1732796492613,0.00013161,95533.0,95532.0,0.06277571]
[1732796493006,0.00013161,95533.0,95532.0,0.08931711]
[1732796493206,0.00613161,95533.0,95532.0,0.10240379]
[1732796495219,0.00613161,95533.0,95532.0,0.08931711]
[1732796495416,0.00313161,95533.0,95532.0,0.08931711]
[1732796495618,0.01213161,95533.0,95532.0,0.08931711]
[1732796496322,0.01213161,95533.0,95532.0,0.07259118]
[1732796496808,0.00913161,95533.0,95532.0,0.06277571]
[1732796497203,0.00913161,95533.0,95532.0,0.06287223]
[1732796497414,0.00913161,95533.0,95532.0,0.05241652]
[1732796497923,0.00913161,95533.0,95532.0,0.06774314]
[1732796498217,0.06145061,95533.0,95532.0,0.01049767]
[1732796498420,0.06145061,95533.0,95532.0,9.652e-05]
[1732796498618,0.21665061,95533.0,95532.0,9.652e-05]
[1732796503323,0.21665061,95533.0,95532.0,0.05241652]
[1732796503822,0.16433161,95533.0,95532.0,0.05241652]
[1732796504320,0.00913161,95533.0,95532.0,0.06279282]
[1732796504914,0.00913161,95533.0,95532.0,0.07260782]
[1732796505319,0.00913161,95533.0,95532.0,0.08925449]
[1732796505622,0.00913161,95533.0,95532.0,0.1039166]
[1732796506918,0.06145061,95533.0,95532.0,0.11242297]
[1732796507219,0.04991445,95533.0,95532.0,0.11242297]
[1732796507421,0.04991445,95533.0,95532.0,0.06010297]
[1732796507422,0.03837829,95533.0,95532.0,0.06010297]
[1732796507923,0.3608,95535.0,95532.0,0.0417816]
[1732796508221,0.3608,95535.0,95534.0,0.052319]
[1732796508417,0.3608,95535.0,95534.0,0.07934197]
[1732796508616,0.41319359,95535.0,95534.0,0.07934197]
[1732796509015,0.36087559,95535.0,95534.0,0.07934197]
[1732796509220,0.36387559,95535.0,95534.0,0.07934197]
[1732796509631,0.36387559,95535.0,95534.0,0.08034197]
[1732796509632,0.36987559,95535.0,95534.0,0.08034197]
[1732796510115,0.37087559,95535.0,95534.0,0.10174718]
[1732796510319,0.37087559,95535.0,95534.0,0.12409853]
[1732796510515,0.37087559,95535.0,95534.0,0.10269332]
[1732796511711,0.37087559,95535.0,95534.0,0.08551978]
[1732796511922,0.37087559,95535.0,95534.0,0.1024931]
[1732796512318,0.37087559,95535.0,95534.0,0.07042289]
[1732796512522,0.37087559,95535.0,95534.0,0.08099745]
[1732796513219,0.37087559,95535.0,95534.0,0.10228968]
[1732796513424,0.37087559,95535.0,95534.0,0.04997068]
[1732796513637,0.42319359,95535.0,95534.0,0.04997068]
[1732796513815,0.42319359,95535.0,95534.0,0.02867845]
[1732796514124,0.42319359,95535.0,95534.0,0.02854322]
[1732796514317,0.42319359,95535.0,95534.0,0.01164531]
[1732796514718,0.43765386,95535.0,95534.0,0.0283702]
[1732796514920,0.43765386,95535.0,95534.0,0.01164531]
[1732796519419,0.43765386,95535.0,95534.0,0.001]
[1732796524831,0.43765386,95535.0,95534.0,0.01116473]
[1732796525029,0.43765386,95535.0,95532.0,9.652e-05]
[1732796525231,0.052319,95533.0,95532.0,9.652e-05]
[1732796526728,0.057319,95533.0,95532.0,0.00109652]
[1732796526929,0.371359,95533.0,95517.0,0.18511227]
[1732796527130,0.371359,95533.0,95512.0,0.24838665]
[1732796527131,0.052328,95516.0,95515.0,0.18511227]
[1732796527328,0.05233,95513.0,95512.0,0.18668256]
[1732796527530,0.05233,95513.0,95512.0,0.01170088]
[1732796528134,0.05233,95513.0,95512.0,0.00157029]
[1732796528729,0.05233,95513.0,95512.0,0.01170971]
[1732796529144,0.05233,95513.0,95512.0,0.00157029]
[1732796529337,0.05233,95513.0,95512.0,0.00357029]
[1732796529929,0.05333,95513.0,95512.0,0.00857029]
[1732796530637,0.06802626,95513.0,95512.0,0.007]
[1732796530835,0.06802626,95513.0,95502.0,0.00011959]
[1732796531037,0.413136,95503.0,95502.0,0.00011959]
[1732796531346,0.567976,95503.0,95502.0,0.00011959]
[1732796532239,0.567976,95503.0,95502.0,0.00411959]
[1732796532939,0.568976,95503.0,95502.0,0.00411959]
[1732796533338,0.569016,95503.0,95502.0,0.00411959]
[1732796533537,0.569016,95503.0,95502.0,0.00511959]
[1732796534244,0.570016,95503.0,95502.0,0.00511959]
[1732796534644,0.415136,95503.0,95502.0,0.00511959]
[1732796534844,0.58438528,95503.0,95502.0,0.00511959]
[1732796540642,0.42950528,95503.0,95502.0,0.00511959]
[1732796540832,0.58438528,95503.0,95502.0,0.00511959]
[1732796541034,0.052344,95489.0,95488.0,0.052344]
[1732796541237,0.207224,95489.0,95488.0,0.052344]
[1732796541439,0.052344,95489.0,95488.0,0.06272712]
[1732796541649,0.207224,95489.0,95488.0,0.06272712]
[1732796542349,0.208224,95489.0,95488.0,0.06572712]
[1732796543047,0.209224,95489.0,95488.0,0.06572712]
[1732796545551,0.209224,95489.0,95488.0,0.08301856]
[1732796545943,0.002,95489.0,95488.0,0.08301856]
[1732796546250,0.15488,95501.0,95500.0,0.052337]
[1732796546549,0.15488,95501.0,95500.0,0.0804327]
[1732796547052,0.3608,95503.0,95502.0,0.052336]
[1732796547244,0.3608,95514.0,95502.0,0.052336]
[1732796547245,0.01495717,95511.0,95502.0,0.09352292]
[1732796547445,0.052326,95521.0,95518.0,0.052327]
[1732796547650,0.052326,95521.0,95520.0,0.052326]
[1732796547851,0.052326,95521.0,95520.0,0.08071955]
[1732796548247,0.052326,95521.0,95520.0,0.02839355]
[1732796548447,0.207206,95521.0,95520.0,0.01080641]
[1732796549548,0.207206,95521.0,95520.0,0.01098777]
[1732796550251,0.207206,95521.0,95520.0,0.06331377]
[1732796550550,0.12608264,95530.0,95512.0,0.0146287]
[1732796550551,0.15488,95522.0,95512.0,0.3754287]
[1732796550754,0.052323,95527.0,95513.0,0.11453927]
[1732796550951,0.15488,95529.0,95528.0,0.052322]
[1732796551253,0.15488,95529.0,95528.0,0.06328486]
[1732796552148,0.15488,95529.0,95528.0,0.01087677]
[1732796552345,0.37543327,95531.0,95513.0,0.21781227]
[1732796552346,0.052325,95523.0,95522.0,0.052325]
[1732796552571,0.413125,95523.0,95522.0,0.01087707]
[1732796554053,0.414125,95523.0,95522.0,0.01087707]
[1732796554351,0.415125,95523.0,95522.0,0.01087707]
[1732796556649,0.052326,95521.0,95520.0,0.052326]
[1732796556852,0.052326,95521.0,95520.0,0.06327513]
[1732796557757,0.052326,95521.0,95520.0,0.052326]
[1732796557942,0.3628,95523.0,95520.0,0.052326]
[1732796557943,0.3618,95523.0,95522.0,0.052325]
[1732796558150,0.3618,95523.0,95522.0,0.06332519]
[1732796558448,0.414125,95523.0,95522.0,0.06332519]
[1732796558854,0.414125,95523.0,95522.0,0.08092617]
[1732796559150,0.3618,95523.0,95522.0,0.08092617]
[1732796559659,0.3628,95523.0,95522.0,0.08092617]
[1732796560353,0.415125,95523.0,95522.0,0.08092617]
[1732796560549,0.415125,95523.0,95522.0,0.01100019]
[1732796560746,0.3608,95523.0,95522.0,0.01100019]
[1732796560962,0.3608,95523.0,95522.0,0.08082767]
[1732796561643,0.51644,95523.0,95522.0,0.10343006]
[1732796562349,0.001,95523.0,95522.0,0.10343006]
[1732796562559,0.00069151,95523.0,95522.0,0.12175402]
[1732796562853,0.15464,95527.0,95526.0,0.052323]
[1732796563350,0.15464,95527.0,95526.0,0.1138985]
[1732796563553,0.15464,95527.0,95526.0,0.12240549]
[1732796563951,0.3608,95531.0,95526.0,0.07008249]
[1732796564253,0.51544,95531.0,95530.0,0.052321]
[1732796564557,0.51544,95531.0,95530.0,0.08157583]
[1732796565651,0.3608,95531.0,95530.0,0.08157583]
[1732796566155,7.559e-05,95535.0,95534.0,0.052319]
[1732796566355,7.559e-05,95535.0,95534.0,0.08157383]
[1732796568559,0.00107559,95535.0,95534.0,0.10426902]
[1732796569758,0.00107559,95535.0,95534.0,0.052319]
[1732796569959,0.00107559,95535.0,95534.0,0.10447558]
[1732796570967,0.00107559,95535.0,95534.0,0.11626062]
[1732796571458,0.00107559,95535.0,95534.0,0.1476676]
[1732796571857,0.00107559,95535.0,95534.0,0.13458144]
[1732796572359,0.00107559,95535.0,95534.0,0.08569587]
[1732796572566,0.00107559,95535.0,95534.0,0.1037302]
[1732796572865,0.00107559,95535.0,95534.0,0.10191548]
[1732796573261,0.00107559,95535.0,95534.0,0.08375422]
[1732796573758,0.36187559,95535.0,95534.0,0.03748176]
[1732796573963,0.4128194,95535.0,95534.0,0.01114431]
[1732796574464,0.052329,95515.0,95514.0,0.06456466]
[1732796574763,0.1546,95515.0,95514.0,0.12425306]
[1732796574955,0.15473018,95515.0,95514.0,0.08422986]
[1732796575162,0.15473018,95515.0,95514.0,0.10179046]
[1732796576057,0.15573018,95515.0,95514.0,0.10379046]
[1732796576263,0.15573018,95515.0,95514.0,0.0985553]
[1732796576264,0.00113018,95515.0,95514.0,0.0985553]
[1732796576464,0.00113018,95515.0,95514.0,0.09852228]
[1732796577158,0.00113018,95515.0,95514.0,0.12066517]
[1732796577354,0.00113018,95515.0,95514.0,0.12590079]
[1732796577554,0.00113018,95515.0,95514.0,0.12890079]
[1732796577555,0.0006946,95515.0,95514.0,0.12890079]
[1732796578368,0.3608,95519.0,95518.0,0.052327]
[1732796578667,0.3608,95519.0,95518.0,0.06985458]
[1732796579864,0.3608,95519.0,95518.0,0.09409537]
[1732796580558,0.413127,95519.0,95518.0,0.09409537]
[1732796580767,0.3608,95519.0,95518.0,0.09409537]
[1732796580956,0.3608,95519.0,95518.0,0.09609537]
[1732796581158,0.3608,95519.0,95518.0,0.09631458]
[1732796582164,0.3608,95519.0,95518.0,0.056327]
[1732796582386,0.3608,95519.0,95518.0,0.09633387]
[1732796583867,0.15468244,95524.0,95518.0,0.14345368]
[1732796583868,8.244e-05,95524.0,95518.0,0.14345368]
[1732796584070,8.244e-05,95524.0,95523.0,0.413125]
[1732796584363,0.3608,95543.0,95538.0,0.052316]
[1732796584364,0.206916,95540.0,95538.0,0.052316]
[1732796584564,0.206916,95540.0,95539.0,0.04000687]
[1732796584759,0.206916,95540.0,95539.0,0.01778045]
[1732796585271,0.20700022,95540.0,95539.0,0.01778045]
[1732796585567,0.23750022,95540.0,95539.0,0.01778045]
[1732796586369,0.20700022,95540.0,95539.0,0.08110876]
[1732796586666,0.21400022,95540.0,95539.0,0.08110876]
[1732796586859,0.21800022,95540.0,95539.0,0.08110876]
[1732796587559,0.16548422,95540.0,95539.0,0.10318514]
[1732796588060,0.16348422,95540.0,95539.0,0.10318514]
[1732796588461,0.15648422,95540.0,95539.0,0.10318514]
[1732796588658,0.00508422,95540.0,95539.0,0.10318514]
[1732796588870,0.00508422,95540.0,95539.0,0.052316]
[1732796589164,0.00508422,95540.0,95539.0,0.10326268]
[1732796589659,0.00508422,95540.0,95539.0,0.12616286]
[1732796589660,0.00208422,95540.0,95539.0,0.12616286]
[1732796589865,0.00508422,95540.0,95539.0,0.12616274]
[1732796590057,0.00508422,95540.0,95539.0,0.12943418]
[1732796592265,0.00508422,95540.0,95539.0,0.08312219]
[1732796592568,0.00508422,95540.0,95539.0,0.31498939]
[1732796593766,0.00508422,95540.0,95539.0,0.12917135]
[1732796593963,0.052313,95544.0,95543.0,0.052314]
[1732796594275,0.052313,95544.0,95543.0,0.12916935]
[1732796595668,0.052313,95544.0,95543.0,0.02864689]
[1732796595971,0.052324,95524.0,95523.0,0.19649548]
[1732796596175,0.206684,95524.0,95523.0,0.03302188]
[1732796596672,0.206684,95524.0,95523.0,0.03302587]
[1732796596866,0.206684,95524.0,95523.0,0.01100673]
[1732796597371,0.206684,95524.0,95523.0,0.01400673]
[1732796598265,0.207684,95524.0,95523.0,0.02000673]
[1732796598972,0.207684,95524.0,95507.0,0.052333]
[1732796598973,0.052333,95508.0,95507.0,0.052333]
[1732796599185,0.567533,95508.0,95507.0,0.052333]
[1732796599972,0.05234,95499.0,95498.0,0.052337]
[1732796600165,0.052338,95499.0,95498.0,0.05349831]
[1732796600372,0.052338,95499.0,95498.0,0.02207953]
[1732796600677,0.05234,95494.0,95493.0,0.052341]
[1732796600969,0.20674,95494.0,95493.0,0.052341]
[1732796601166,0.052344,95489.0,95488.0,0.052343]
[1732796601367,0.052344,95489.0,95488.0,0.10052542]
[1732796602172,0.052344,95489.0,95488.0,0.09070576]
[1732796602375,0.052344,95489.0,95488.0,0.10052551]
[1732796602789,0.053344,95489.0,95488.0,0.10052551]
[1732796603172,0.207744,95489.0,95488.0,0.06543592]
[1732796603577,0.1554,95489.0,95488.0,0.06543592]
[1732796603793,0.1554,95489.0,95488.0,0.08863444]
[1732796603976,0.208743,95489.0,95488.0,0.08863444]
[1732796604166,0.208743,95489.0,95488.0,0.06643592]
[1732796604881,0.208743,95489.0,95488.0,0.08551974]
[1732796605076,0.15644,95489.0,95488.0,0.088793]
[1732796605272,0.002,95489.0,95488.0,0.40621736]
[1732796605474,0.002,95489.0,95488.0,0.42716535]
[1732796605678,0.052335,95504.0,95488.0,0.42716535]
[1732796605679,0.15444,95502.0,95501.0,0.052337]
[1732796605981,0.206776,95502.0,95501.0,0.052337]
[1732796606584,0.206776,95502.0,95501.0,0.0700569]
[1732796606769,0.118134,95507.0,95506.0,0.052334]
[1732796606976,0.206774,95507.0,95506.0,0.052334]
[1732796607672,0.206774,95507.0,95506.0,0.07010098]
[1732796608277,0.206774,95507.0,95506.0,0.053334]
[1732796608477,0.207774,95507.0,95506.0,0.07098921]
[1732796608670,0.207774,95507.0,95506.0,0.053334]
[1732796608878,0.15544,95507.0,95506.0,0.07094218]
[1732796609384,0.15544,95507.0,95506.0,0.07094119]
[1732796609576,0.207773,95507.0,95506.0,0.07094119]
[1732796609880,0.207773,95507.0,95506.0,0.053334]
[1732796610081,0.15544,95507.0,95506.0,0.053334]
[1732796610782,0.15544,95507.0,95506.0,0.07115319]
[1732796610985,0.15544,95507.0,95506.0,0.08228975]
[1732796611581,0.207773,95507.0,95506.0,0.08228975]
[1732796611781,0.207773,95507.0,95506.0,0.06447056]
[1732796612582,0.208773,95507.0,95506.0,0.06447056]
[1732796612782,0.15644,95507.0,95506.0,0.06447056]
[1732796612984,0.003,95507.0,95506.0,0.06347056]
[1732796613190,0.15744,95507.0,95506.0,0.06347056]
[1732796613485,0.15744,95507.0,95506.0,0.08111919]
[1732796613885,0.003,95507.0,95506.0,0.08111919]
[1732796614387,0.15444,95511.0,95510.0,0.052332]
[1732796614583,0.15444,95511.0,95510.0,0.09944387]
[1732796614887,0.3608,95516.0,95515.0,0.052329]
[1732796615085,0.51524,95516.0,95515.0,0.08132072]
[1732796615795,0.51524,95516.0,95515.0,0.052329]
[1732796615986,0.3608,95516.0,95515.0,0.08169064]
[1732796616289,0.15424,95520.0,95519.0,0.052327]
[1732796616487,0.15424,95520.0,95519.0,0.08168864]
[1732796617088,0.00157103,95523.0,95520.0,0.052326]
[1732796617380,0.052324,95525.0,95521.0,0.02936164]
[1732796617381,0.15424,95524.0,95521.0,0.02936164]
[1732796617590,0.15424,95524.0,95522.0,0.06361767]
[1732796617887,0.15424,95524.0,95523.0,0.01129267]
[1732796618090,0.15424,95524.0,95523.0,0.05237996]
[1732796618289,0.15424,95524.0,95523.0,0.02936164]
[1732796618898,0.206564,95524.0,95523.0,0.02936164]
[1732796619086,0.206564,95524.0,95523.0,0.08168664]
[1732796619592,0.207564,95524.0,95523.0,0.08168664]
[1732796619786,0.15524,95524.0,95523.0,0.08168664]
[1732796620097,0.15524,95524.0,95523.0,0.10502341]
[1732796620592,0.15624,95524.0,95523.0,0.10502341]
[1732796621089,0.002,95524.0,95523.0,0.10502341]
[1732796621288,0.15424,95543.0,95542.0,0.052314]
[1732796621483,0.15424,95543.0,95542.0,0.07038297]